bitfinex/quotes_ETHUSD_20240610
["timestamp","ask_amount","ask_price","bid_price","bid_amount"]
[1718038932882,2.70663,3694.7,3693.6,2.88174033]
[1718038933882,2.70663,3694.7,3693.8,2.70719]
[1718038935997,2.70677,3694.5,3693.6,0.17441033]
[1718038936234,2.977447,3694.5,3693.6,0.17441033]
[1718038936410,2.977447,3694.5,3693.7,0.42363635]
[1718038936731,2.977447,3694.5,3693.6,2.88175033]
[1718038936732,2.977447,3694.5,3693.8,2.7072]
[1718038937530,2.70692,3694.3,3693.6,0.17441033]
[1718038937740,0.2977597,3694.2,3693.4,2.70746]
[1718038938534,2.6308597,3694.2,3693.4,2.70746]
[1718038939310,2.70703,3694.1,3693.4,2.70746]
[1718038944863,2.0057042,3695.0,3693.4,2.70746]
[1718038945072,2.70683,3694.4,3693.6,2.70733]
[1718038945371,2.70683,3694.4,3693.8,2.70719]
[1718038945510,5.07801,3694.7,3693.8,2.70719]
[1718038945912,5.07801,3694.7,3693.5,2.3505]
[1718038945913,2.70661,3694.7,3694.0,2.70704]
[1718038946976,2.70688,3694.3,3693.4,2.70749]
[1718038953450,2.70704,3694.1,3693.4,2.70749]
[1718038956317,2.70719,3693.9,3693.1,10.14771]
[1718038956656,5.01453,3693.7,3693.1,7.44]
[1718038957658,2.70756,3693.4,3693.1,7.44]
[1718038958022,2.70756,3693.4,3692.8,2.70792]
[1718038962970,0.55,3693.3,3692.5,10.14815]
[1718038963172,0.55,3693.3,3692.5,2.70815]
[1718038963761,0.325756,3693.2,3692.5,2.70815]
[1718038964176,2.3726,3693.1,3692.5,2.70815]
[1718038970461,2.3726,3693.1,3692.7,2.70799]
[1718038970664,0.55,3693.3,3692.7,2.70799]
[1718038970878,2.3256,3693.5,3692.4,2.70823]
[1718038970879,0.55,3693.4,3692.4,2.70823]
[1718038971483,0.55,3693.4,3692.6,2.70806]
[1718038971781,0.61470369,3693.3,3692.6,2.70806]
[1718038971944,0.55,3693.2,3692.6,2.70806]
[1718038973562,0.55,3693.2,3692.8,2.70796]
[1718038977663,1.708,3692.9,3691.6,3.27580188]
[1718038977863,5.20016,3692.7,3691.7,2.70872]
[1718038978137,0.55,3692.6,3691.7,2.70872]
[1718038978902,2.7082,3692.5,3691.7,2.70872]
[1718038979061,0.55,3692.4,3691.7,2.70872]
[1718038979787,0.55,3692.4,3692.0,2.70855]
[1718038980010,1.12503,3692.4,3692.0,2.70855]
[1718038981468,2.4811,3692.3,3692.0,2.70855]
[1718038981898,2.4811,3692.3,3691.7,2.70871]
[1718038982079,0.55,3692.2,3691.7,2.70871]
[1718038984223,2.4811,3692.3,3691.9,2.7086]
[1718038984375,2.786713,3692.3,3691.9,2.7086]
[1718038985085,2.4811,3692.3,3691.9,2.7086]
[1718038986584,0.55,3692.2,3691.6,2.7088]
[1718038987495,2.7085,3692.1,3691.5,0.42378599]
[1718038987697,0.55,3692.0,3691.5,0.42378599]
[1718038987913,2.3573,3691.8,3691.5,0.42378599]
[1718038989204,0.38085,3691.9,3691.3,2.70902]
[1718038990314,0.55,3692.0,3691.5,2.7089]
[1718038990478,2.70832,3692.4,3691.7,2.70876]
[1718038990907,2.70841,3692.2,3691.7,2.70876]
[1718038991479,0.55,3692.1,3691.4,2.70894]
[1718038991625,2.645841,3692.0,3691.4,2.70894]
[1718038991955,2.87,3691.9,3691.0,0.42388759]
[1718038992116,2.4835,3691.1,3691.0,0.42388759]
[1718038992651,3.0335,3691.1,3690.0,2.70996]
[1718038992816,1.124267,3691.0,3690.0,2.70996]
[1718038994614,0.55,3691.0,3690.0,2.70996]
[1718038995830,3.25935,3691.0,3690.0,2.70996]
[1718038996567,2.70949,3690.8,3689.8,4.0836]
[1718038996768,2.70949,3690.8,3689.9,3.0]
[1718038997062,0.55,3690.7,3689.9,3.0]
[1718038997576,2.70978,3690.4,3689.4,10.15044]
[1718038997776,5.18958,3690.4,3689.5,3.0]
[1718038998781,2.70992,3690.2,3689.5,3.0]
[1718038999099,2.71006,3690.0,3689.0,2.2597]
[1718038999267,2.71006,3690.0,3689.1,2.71065]
[1718039004059,2.71021,3689.8,3688.8,2.71088]
[1718039004255,2.71033,3689.6,3688.8,2.71088]
[1718039005587,2.71033,3689.6,3688.9,3.0]
[1718039006777,3.227993,3689.6,3688.8,2.71088]
[1718039007611,0.55,3689.5,3688.8,2.71088]
[1718039008107,0.55,3689.5,3688.5,2.71109]
[1718039008309,0.55,3689.5,3688.2,9.9052]
[1718039008310,2.7108,3689.0,3688.2,2.71132]
[1718039008607,2.4404,3689.4,3688.2,2.71132]
[1718039008608,2.71091,3688.8,3688.2,2.71132]
[1718039009904,0.55,3688.9,3688.2,2.71132]
[1718039010106,0.55,3689.0,3688.2,2.71132]
[1718039010408,0.55,3689.0,3688.4,2.71116]
[1718039010574,2.71071,3689.1,3688.4,2.71116]
[1718039011080,5.1509,3689.4,3688.6,2.71102]
[1718039011284,0.55,3689.3,3688.6,2.71102]
[1718039013737,0.55,3689.3,3688.8,2.71087]
[1718039014109,2.71028,3689.7,3688.5,4.0298]
[1718039014319,2.3266,3689.9,3688.6,0.40298]
[1718039014629,2.3266,3689.9,3689.2,2.71058]
[1718039015498,0.55,3689.8,3689.2,2.71058]
[1718039015693,5.14074,3690.3,3689.4,2.71043]
[1718039015893,5.14074,3690.3,3689.6,2.71025]
[1718039016112,3.223914,3690.3,3689.6,2.71025]
[1718039017463,0.55,3690.2,3689.6,2.71025]
[1718039018645,2.4312,3690.0,3689.3,2.71049]
[1718039019152,0.55,3689.9,3689.3,2.71049]
[1718039019318,3.26013,3689.9,3689.3,2.71049]
[1718039019524,3.829263,3689.9,3689.3,2.71049]
[1718039020758,1.119133,3689.9,3689.3,2.71049]
[1718039021047,2.70991,3690.2,3689.6,2.71029]
[1718039021275,0.55,3690.1,3689.6,2.71029]
[1718039021786,0.55,3690.4,3689.6,2.71029]
[1718039022889,0.55,3690.4,3689.8,2.71014]
[1718039026873,2.70981,3690.3,3689.5,2.71033]
[1718039027072,0.55,3690.2,3689.5,2.71033]
[1718039032888,2.70996,3690.1,3689.5,2.71033]
[1718039033581,2.70996,3690.1,3689.2,1.708]
[1718039033582,2.303,3689.9,3689.2,4.41854]
[1718039033782,5.01313,3689.9,3689.2,2.71054]
[1718039033969,0.55,3689.8,3689.2,2.71054]
[1718039034167,0.556313,3689.7,3689.2,2.71054]
[1718039035488,0.55,3689.8,3689.2,2.71054]
[1718039038205,0.55,3689.8,3689.4,2.71046]
[1718039039390,0.55,3690.1,3689.4,2.71046]
[1718039042134,0.55,3690.1,3689.6,2.71031]
[1718039043326,1.1139169,3690.1,3689.8,2.71014]
[1718039043501,0.55,3690.1,3689.8,2.71014]
[1718039044949,0.569101,3690.3,3690.0,2.71002]
[1718039045114,0.55,3690.2,3690.0,2.71002]
[1718039047359,0.5639169,3690.4,3690.2,2.7098]
[1718039047514,0.5639169,3690.5,3690.2,2.7098]
[1718039047859,0.5639169,3690.6,3690.4,2.70969]
[1718039048167,0.5639169,3690.6,3690.1,2.70988]
[1718039048632,0.5639169,3690.6,3690.3,2.70979]
[1718039051061,0.5639169,3690.6,3690.0,2.70996]
[1718039053748,0.5639169,3690.6,3690.2,2.70987]
[1718039053937,1.36209597,3690.6,3690.2,2.70987]
[1718039055363,0.5639169,3690.5,3690.2,2.70987]
[1718039056961,0.5639169,3690.5,3690.4,0.714]
[1718039057169,0.5639169,3690.6,3690.4,0.714]
[1718039057325,0.5639169,3690.7,3690.5,0.714]
[1718039057821,0.5639169,3690.7,3690.6,2.70958]
[1718039058044,0.5639169,3690.8,3690.6,2.70958]
[1718039058323,0.5639169,3690.8,3690.7,0.714]
[1718039063259,0.5639169,3690.9,3690.7,0.714]
[1718039064225,0.5639169,3691.0,3690.8,2.70943]
[1718039064423,0.5639169,3691.0,3690.9,0.714]
[1718039064892,0.5639169,3691.2,3691.0,2.70929]
[1718039065372,0.5639169,3691.2,3690.8,2.398]
[1718039065373,0.5639169,3691.4,3691.2,2.70914]
[1718039065531,0.5639169,3691.5,3691.3,0.714]
[1718039066265,0.5639169,3691.6,3691.3,0.714]
[1718039066567,0.5639169,3691.6,3691.2,2.70914]
[1718039066768,0.5639169,3691.6,3691.3,0.714]
[1718039067465,0.5639169,3691.7,3691.3,0.714]
[1718039067764,0.55,3691.6,3691.3,0.714]
[1718039068071,0.55,3691.6,3690.9,2.70933]
[1718039068369,1.24619625,3691.6,3691.2,0.714]
[1718039069466,1.24619625,3691.6,3691.0,0.714]
[1718039070967,0.5639169,3691.4,3690.7,0.714]
[1718039071187,0.5639169,3691.4,3690.9,0.714]
[1718039071188,0.55,3691.3,3690.9,0.714]
[1718039071337,1.12063087,3691.3,3690.9,0.714]
[1718039071933,2.70919,3691.2,3690.9,0.714]
[1718039072136,0.55,3691.1,3690.9,0.714]
[1718039074076,2.4706,3690.9,3689.9,2.3917]
[1718039074391,2.4706,3690.9,3690.3,0.714]
[1718039074392,3.56151,3690.8,3690.3,0.714]
[1718039074550,3.56151,3690.8,3690.5,0.714]
[1718039077367,3.56151,3690.8,3690.4,0.714]
[1718039078675,3.56151,3690.8,3690.6,0.714]
[1718039079669,0.85206,3690.8,3690.6,0.714]
[1718039081149,3.2731869,3691.1,3690.6,0.714]
[1718039081348,0.55,3691.0,3690.8,0.714]
[1718039081883,0.55,3691.0,3690.6,0.714]
[1718039085264,1.1139169,3691.0,3690.6,0.714]
[1718039086315,1.1139169,3691.0,3690.8,0.714]
[1718039086515,0.55,3691.0,3690.8,0.714]
[1718039088201,0.5639169,3691.1,3690.8,0.714]
[1718039088404,0.5639169,3691.2,3690.8,0.714]
[1718039088578,1.13454777,3691.3,3690.8,0.714]
[1718039088933,3.95840034,3691.2,3690.7,3.4235]
[1718039089079,0.5639169,3691.0,3690.7,3.4235]
[1718039090202,2.7093,3691.0,3690.4,2.70967]
[1718039090399,3.2732169,3691.0,3690.7,0.714]
[1718039090606,0.5639169,3690.9,3690.7,0.714]
[1718039090770,1.10108318,3690.9,3690.7,0.714]
[1718039091094,0.53716628,3690.9,3690.7,0.714]
[1718039091303,1.10108318,3690.9,3690.7,0.714]
[1718039091513,1.10108318,3690.9,3690.6,0.714]
[1718039091703,0.5639169,3690.9,3690.6,0.714]
[1718039093716,0.5639169,3690.9,3690.8,0.714]
[1718039095244,2.9998,3690.9,3689.6,0.56697188]
[1718039095399,0.56636557,3690.6,3690.1,0.714]
[1718039095719,0.56636557,3690.5,3690.3,0.714]
[1718039095920,0.55,3690.4,3690.3,0.714]
[1718039099119,1.11636557,3690.4,3690.0,0.714]
[1718039100333,1.11636557,3690.4,3689.8,2.71016]
[1718039100530,0.56636557,3690.2,3689.8,3.42416]
[1718039100829,0.56636557,3690.1,3689.8,3.42416]
[1718039101029,0.56636557,3690.2,3689.8,2.71016]
[1718039101326,0.56636557,3690.2,3689.8,3.42416]
[1718039101539,0.56636557,3690.2,3689.8,2.71016]
[1718039101737,0.56636557,3690.2,3690.0,2.71002]
[1718039102034,1.11636557,3690.4,3690.0,3.42402]
[1718039102997,1.11636557,3690.4,3690.2,2.70986]
[1718039103310,0.55,3690.4,3690.2,2.70986]
[1718039110104,0.56636557,3690.5,3690.2,2.70986]
[1718039112645,0.56636557,3690.5,3690.4,3.42373]
[1718039112982,0.56636557,3690.7,3690.4,6.13346]
[1718039113102,0.56636557,3691.2,3691.0,2.70929]
[1718039113302,0.56636557,3691.3,3691.2,2.70914]
[1718039113526,0.56636557,3691.6,3691.2,2.70914]
[1718039113708,0.56636557,3691.6,3691.3,0.714]
[1718039113929,0.56636557,3691.6,3691.2,2.70914]
[1718039114103,1.09206307,3691.6,3690.9,2.70932]
[1718039114310,0.56636557,3691.5,3690.9,2.70932]
[1718039114834,0.56636557,3691.4,3690.9,2.70932]
[1718039115043,0.56636557,3691.3,3690.9,2.70932]
[1718039116631,0.56636557,3691.3,3691.1,2.70917]
[1718039116813,0.56636557,3691.5,3691.1,2.70917]
[1718039117142,0.56636557,3691.5,3691.3,2.70902]
[1718039117318,0.56636557,3691.6,3691.3,2.70902]
[1718039117517,0.56636557,3691.7,3691.3,2.70902]
[1718039119343,0.56636557,3691.8,3691.3,2.70902]
[1718039119939,0.56636557,3691.8,3691.6,2.70884]
[1718039120128,0.56636557,3691.8,3691.6,3.42284]
[1718039120320,0.56636557,3691.9,3691.6,3.42284]
[1718039120517,8.8556193,3692.4,3691.8,2.70867]
[1718039120518,0.56636557,3692.1,3691.8,2.70867]
[1718039120717,0.56636557,3692.2,3691.8,2.70867]
[1718039121157,0.84919559,3692.4,3691.8,2.70867]
[1718039121158,0.56636557,3692.3,3691.8,3.42267]
[1718039121449,0.56636557,3692.4,3692.0,0.714]
[1718039121644,0.56636557,3692.4,3691.8,3.42267]
[1718039121808,3.68703669,3692.4,3691.8,2.70867]
[1718039122147,1.28036557,3692.2,3691.5,2.70889]
[1718039122348,0.56636557,3692.3,3691.5,2.70889]
[1718039122659,1.11636557,3692.2,3691.5,2.70889]
[1718039123564,3.82481557,3692.2,3691.5,2.70889]
[1718039123863,0.81463823,3692.1,3691.5,2.70889]
[1718039126814,0.81463823,3692.1,3691.6,0.714]
[1718039128432,3.25845,3692.2,3691.6,0.714]
[1718039128633,3.25845,3692.2,3691.8,0.714]
[1718039129951,0.41237112,3692.4,3691.8,0.714]
[1718039130166,0.55,3692.3,3691.8,0.714]
[1718039130456,0.41237112,3692.4,3691.8,0.714]
[1718039130659,1.4156193,3693.2,3692.2,0.714]
[1718039130660,0.56636557,3692.7,3692.2,0.714]
[1718039130862,0.55,3692.6,3692.2,0.714]
[1718039131169,3.27438557,3692.8,3692.2,0.714]
[1718039131170,0.55,3692.7,3692.2,0.714]
[1718039131315,1.03375812,3692.7,3692.2,0.714]
[1718039131960,2.70812,3692.6,3692.0,2.3581]
[1718039132117,0.55,3692.5,3692.0,3.0721]
[1718039132321,1.05058781,3692.5,3692.0,3.0721]
[1718039134951,2.70827,3692.4,3692.0,3.0721]
[1718039135264,2.70827,3692.4,3691.9,2.70863]
[1718039139877,2.70827,3692.4,3691.8,0.714]
[1718039140078,2.70842,3692.2,3691.6,4.99278]
[1718039140279,0.270842,3692.1,3691.6,2.70878]
[1718039140581,0.270842,3692.1,3691.6,3.42278]
[1718039140877,2.70842,3692.2,3691.8,0.714]
[1718039141961,5.62595,3692.5,3691.8,0.714]
[1718039142142,3.25825,3692.5,3691.8,0.714]
[1718039144571,3.25825,3692.5,3691.8,3.42269]
[1718039144775,0.325825,3692.4,3691.8,3.42269]
[1718039144968,0.55,3692.3,3691.8,3.42269]
[1718039149286,0.55,3692.3,3691.9,2.2938]
[1718039149449,0.325825,3692.4,3691.9,2.2938]
[1718039151207,2.70825,3692.5,3691.9,2.2938]
[1718039151350,0.55,3692.4,3692.1,0.714]
[1718039151796,0.55,3692.4,3691.9,3.0078]
[1718039152812,0.55,3692.4,3691.9,2.2938]
[1718039152992,0.55,3692.4,3691.9,3.0078]
[1718039153398,0.93246156,3692.4,3691.9,3.0078]
[1718039153562,0.93246156,3692.4,3691.9,2.2938]
[1718039154683,2.70834,3692.3,3691.8,2.70869]
[1718039155019,2.70834,3692.3,3691.9,0.714]
[1718039156165,3.27470557,3692.3,3691.9,0.714]
[1718039156365,4.02374184,3692.3,3691.9,0.714]
[1718039156565,4.02374184,3692.3,3691.6,2.263]
[1718039156901,2.70854,3692.1,3691.7,0.714]
[1718039157262,2.70863,3691.9,3691.6,2.263]
[1718039157501,2.70863,3691.9,3691.6,0.714]
[1718039157861,3.27499557,3691.9,3691.6,0.714]
[1718039158061,2.70863,3691.9,3691.6,0.714]
[1718039158290,3.27499557,3691.9,3691.6,0.714]
[1718039159393,0.56636557,3691.8,3691.6,0.714]
[1718039160359,2.70877,3691.7,3691.6,0.714]
[1718039160582,3.27513557,3691.7,3691.6,0.714]
[1718039161398,2.70893,3691.5,3691.3,2.3132]
[1718039161564,2.70908,3691.3,3691.1,0.714]
[1718039161771,2.70908,3691.3,3690.7,2.4584]
[1718039162100,0.56610348,3691.2,3690.9,0.714]
[1718039162793,2.70921,3691.1,3691.0,0.00851063]
[1718039164141,3.27531348,3691.1,3691.0,0.00851063]
[1718039164273,3.12166091,3691.1,3691.0,0.00851063]
[1718039165067,3.68776439,3691.1,3691.0,0.00851063]
[1718039166006,3.27531348,3691.1,3691.0,0.00851063]
[1718039166303,2.70921,3691.1,3691.0,0.00851063]
[1718039169106,3.27452033,3691.1,3691.0,0.00851063]
[1718039169404,2.70921,3691.1,3691.0,0.00851063]
[1718039170972,2.70921,3691.1,3691.0,0.72251063]
[1718039171174,2.70921,3691.1,3691.0,0.00851063]
[1718039172334,2.70905,3691.4,3691.0,3.00561063]
[1718039179548,2.70905,3691.4,3691.0,0.00851063]
[1718039179698,2.70914,3691.2,3691.0,0.00851063]
[1718039181235,5.11204,3691.2,3691.0,0.00851063]
[1718039182427,0.55,3691.1,3691.0,0.00851063]
[1718039190492,1.82931033,3691.1,3691.0,0.00851063]
[1718039190669,2.11319559,3691.1,3691.0,0.00851063]
[1718039190843,2.2738626,3691.1,3691.0,0.00851063]
[1718039193483,6.40660641,3691.1,3691.0,0.00851063]
[1718039194463,6.68707313,3691.1,3691.0,0.00851063]
[1718039194904,5.2738626,3691.1,3689.8,3.059]
[1718039195204,0.56517991,3690.5,3689.8,2.345]
[1718039195437,2.70995,3690.1,3689.8,2.345]
[1718039195863,2.70995,3690.1,3689.6,2.3194]
[1718039201197,2.70974,3690.4,3689.7,0.714]
[1718039201399,0.55,3690.3,3689.7,0.714]
[1718039202591,2.70974,3690.4,3689.7,1.01734]
[1718039202793,0.56517991,3690.7,3690.3,0.714]
[1718039202999,2.7095,3690.8,3690.4,2.3395]
[1718039203220,2.7095,3690.8,3690.4,2.34801063]
[1718039203393,2.7095,3690.8,3690.4,0.00851063]
[1718039203714,1.04882489,3690.7,3690.4,0.00851063]
[1718039204286,0.56517991,3690.6,3690.4,0.00851063]
[1718039205429,1.19764498,3690.7,3690.4,0.00851063]
[1718039205430,1.76282489,3690.7,3690.4,0.00851063]
[1718039205590,0.56517991,3690.6,3690.4,0.00851063]
[1718039205790,1.76282489,3690.7,3690.4,0.00851063]
[1718039207183,1.19764498,3690.7,3690.4,0.00851063]
[1718039207388,1.76282489,3690.7,3690.4,0.00851063]
[1718039209351,0.714,3690.5,3690.4,0.00851063]
[1718039209587,1.264,3690.5,3690.4,0.00851063]
[1718039211628,2.11238156,3690.5,3690.4,0.00851063]
[1718039213996,1.39838156,3690.5,3690.4,0.00851063]
[1718039214231,1.11562702,3690.5,3690.4,0.00851063]
[1718039214534,3.27520702,3690.6,3690.4,0.00851063]
[1718039215431,0.56562702,3690.5,3690.4,0.00851063]
[1718039218514,0.56562702,3690.5,3690.4,2.42431063]
[1718039219147,3.27520702,3690.6,3690.4,2.42431063]
[1718039219434,2.70958,3690.6,3690.4,2.42431063]
[1718039219800,0.56562702,3690.7,3690.4,2.42431063]
[1718039220005,0.56562702,3690.8,3690.4,2.42431063]
[1718039220200,0.55,3690.7,3690.4,2.42431063]
[1718039221639,1.11562702,3690.7,3690.4,2.42431063]
[1718039222021,0.55,3690.7,3690.4,2.42431063]
[1718039222318,1.11562702,3690.7,3690.4,2.42431063]
[1718039223310,0.56562702,3690.6,3690.4,2.42431063]
[1718039223532,1.11562702,3690.7,3690.4,2.42431063]
[1718039224102,0.56562702,3690.6,3690.4,0.00851063]
[1718039224503,0.84838156,3690.6,3690.4,0.00851063]
[1718039224734,1.49761491,3690.6,3690.4,0.00851063]
[1718039225323,0.84838156,3690.5,3690.4,0.00851063]
[1718039225927,1.49761491,3690.6,3690.4,0.00851063]
[1718039226138,0.84838156,3690.6,3690.4,0.00851063]
[1718039226315,0.84838156,3690.5,3690.4,0.00851063]
[1718039226526,0.84838156,3690.6,3690.4,0.00851063]
[1718039227106,0.84838156,3690.5,3690.4,0.00851063]
[1718039230454,1.13035982,3690.6,3690.4,0.00851063]
[1718039231644,1.83624168,3690.6,3690.4,0.00851063]
[1718039233455,1.13035982,3690.5,3690.4,0.00851063]
[1718039233618,1.83624168,3690.6,3690.4,0.00851063]
[1718039234320,1.13035982,3690.5,3690.4,0.00851063]
[1718039234542,1.264,3690.5,3690.4,0.00851063]
[1718039234741,3.29032568,3690.5,3690.4,0.00851063]
[1718039236534,2.57632568,3690.5,3690.4,0.00851063]
[1718039240328,1.41671045,3690.5,3690.4,0.00851063]
[1718039240945,1.41671045,3690.6,3690.5,2.2565]
[1718039241268,1.41671045,3690.7,3690.5,2.2565]
[1718039241569,1.13390208,3690.6,3690.5,2.2565]
[1718039241857,0.8504613,3690.7,3690.5,2.9705]
[1718039242236,0.56693175,3690.6,3690.5,2.9705]
[1718039242462,0.56693175,3690.6,3690.5,3.538531]
[1718039242683,0.56693175,3690.7,3690.5,3.538531]
[1718039242836,0.56693175,3690.7,3690.5,6.248171]
[1718039243243,0.56693175,3690.9,3690.5,6.248171]
[1718039244538,0.56693175,3690.9,3690.6,2.2525]
[1718039246139,0.56693175,3691.0,3690.6,2.2525]
[1718039246344,0.56693175,3691.0,3690.6,2.67005684]
[1718039248669,0.56693175,3691.0,3690.7,2.7095]
[1718039249058,0.56693175,3691.1,3690.7,2.7095]
[1718039249374,0.56693175,3691.1,3690.7,3.4235]
[1718039249543,0.56693175,3691.1,3690.8,0.5676]
[1718039250247,0.56693175,3691.1,3690.9,0.714]
[1718039250453,0.56693175,3691.1,3691.0,2.4021]
[1718039250775,0.56693175,3691.2,3691.0,2.4021]
[1718039254147,0.8504613,3691.4,3691.0,2.4021]
[1718039254148,0.56693175,3691.3,3691.0,2.4021]
[1718039254651,0.56693175,3691.3,3690.9,2.7093]
[1718039256191,0.56693175,3691.2,3690.9,2.7093]
[1718039258669,0.56693175,3691.3,3690.9,2.7093]
[1718039259477,0.56693175,3691.3,3690.7,2.2953]
[1718039259680,0.56693175,3691.3,3690.9,0.714]
[1718039264064,0.56693175,3691.2,3690.9,0.714]
[1718039264670,0.56693175,3691.3,3690.9,0.714]
[1718039265072,0.56693175,3691.2,3690.9,0.714]
[1718039265692,0.56693175,3691.3,3690.9,0.714]
[1718039269996,0.56693175,3691.3,3690.8,2.70938]
[1718039269997,0.56693175,3691.3,3691.1,0.714]
[1718039270196,0.56693175,3691.4,3691.1,0.714]
[1718039271398,0.56693175,3691.5,3691.1,0.714]
[1718039271700,0.56693175,3691.5,3690.9,0.714]
[1718039271867,0.56693175,3691.4,3690.9,0.714]
[1718039272268,0.56693175,3691.4,3691.0,2.70929]
[1718039272568,0.8504613,3691.6,3691.0,2.70929]
[1718039272569,0.56693175,3691.5,3691.0,2.70929]
[1718039272967,0.56693175,3691.4,3691.0,2.70929]
[1718039273179,0.56693175,3691.4,3691.3,0.714]
[1718039273584,0.56693175,3691.6,3691.4,2.70899]
[1718039273911,0.56693175,3691.6,3691.5,0.714]
[1718039274580,0.56693175,3691.8,3691.5,0.714]
[1718039274981,0.56693175,3691.7,3691.5,0.714]
[1718039275300,0.56693175,3691.8,3691.5,0.714]
[1718039275495,0.8504613,3691.9,3691.5,0.714]
[1718039275496,0.56693175,3691.7,3691.5,0.714]
[1718039276132,0.56693175,3691.8,3691.5,0.714]
[1718039276627,0.56693175,3691.9,3691.5,0.714]
[1718039278890,0.56693175,3691.9,3691.7,0.714]
[1718039279108,0.56693175,3692.0,3691.7,2.9998]
[1718039279691,0.56693175,3692.1,3691.7,2.9998]
[1718039280204,0.56693175,3692.0,3691.7,2.9998]
[1718039280926,0.56693175,3692.0,3691.7,2.2858]
[1718039283024,0.56693175,3692.0,3691.6,2.70883]
[1718039283796,0.56693175,3691.9,3691.6,2.70883]
[1718039284908,0.56693175,3691.9,3691.5,0.714]
[1718039285295,0.56693175,3691.9,3691.4,3.164]
[1718039285502,0.56693175,3691.8,3691.4,3.164]
[1718039285812,0.56693175,3691.8,3691.6,0.714]
[1718039286212,0.56693175,3691.7,3691.6,0.714]
[1718039288498,0.56693175,3691.7,3690.6,2.4364]
[1718039288699,2.70876,3691.8,3691.2,0.714]
[1718039288700,0.56693175,3691.6,3691.2,0.714]
[1718039289115,0.56693175,3691.4,3691.2,0.714]
[1718039290514,0.56693175,3691.4,3691.1,2.3972]
[1718039290845,0.56693175,3691.4,3691.2,0.714]
[1718039291512,0.56693175,3691.4,3691.1,2.3972]
[1718039291718,0.56693175,3691.4,3691.1,3.1112]
[1718039293203,0.56693175,3691.4,3690.5,2.3848]
[1718039293204,0.1417393,3691.3,3690.5,2.3848]
[1718039293408,0.1417393,3691.3,3690.7,0.714]
[1718039293808,0.56693175,3691.0,3690.7,0.714]
[1718039302247,0.56693175,3691.1,3690.7,0.714]
[1718039303914,0.56693175,3691.0,3690.7,0.714]
[1718039304747,0.56693175,3691.1,3690.7,0.714]
[1718039308035,0.56693175,3691.1,3690.8,2.70943]
[1718039308969,0.56693175,3691.1,3691.0,2.70929]
[1718039309119,0.56693175,3691.1,3691.0,5.69009]
[1718039309323,0.56693175,3691.2,3691.0,5.69009]
[1718039309739,0.56693175,3691.4,3691.0,5.69009]
[1718039309960,0.56693175,3691.4,3691.3,0.714]
[1718039310284,0.56693175,3691.5,3691.4,5.01669]
[1718039310629,0.56693175,3691.5,3691.4,5.73069]
[1718039311619,0.56693175,3691.5,3691.4,3.42299]
[1718039311827,0.56693175,3691.6,3691.4,3.42299]
[1718039315269,0.56693175,3691.6,3691.5,2.4308]
[1718039316291,0.56693175,3691.6,3691.4,2.70899]
[1718039316492,0.56693175,3691.6,3691.4,3.42299]
[1718039318322,0.56693175,3691.7,3691.4,3.42299]
[1718039318785,0.56693175,3691.6,3691.4,3.42299]
[1718039320010,0.56693175,3691.7,3691.4,3.42299]
[1718039320188,0.56693175,3691.7,3691.6,0.714]
[1718039321273,0.56693175,3691.8,3691.7,2.70877]
[1718039321690,0.56693175,3691.9,3691.7,2.70877]
[1718039322213,0.56693175,3691.9,3691.8,0.714]
[1718039322430,0.56693175,3691.9,3691.7,2.70877]
[1718039326238,0.56693175,3691.8,3691.7,2.70877]
[1718039329926,0.56693175,3691.9,3691.7,2.70877]
[1718039332763,0.56693175,3691.9,3691.8,0.714]
[1718039334760,0.56693175,3691.9,3691.7,2.70877]
[1718039340884,0.56619137,3691.9,3691.7,2.70877]
[1718039344472,0.56619137,3691.8,3691.7,2.70877]
[1718039344988,0.56619137,3691.9,3691.7,2.70877]
[1718039345189,0.56619137,3691.8,3691.7,2.70877]
[1718039348594,0.56619137,3691.8,3691.4,5.14177]
[1718039348761,0.56619137,3691.8,3691.5,0.714]
[1718039349583,0.56619137,3691.7,3691.5,0.714]
[1718039354418,0.84928706,3691.8,3691.5,1.299577]
[1718039354419,0.56619137,3691.6,3691.5,1.299577]
[1718039354585,0.56619137,3691.7,3691.5,1.299577]
[1718039354786,0.56619137,3691.7,3691.6,0.714]
[1718039355577,0.56619137,3691.7,3691.5,0.585577]
[1718039355783,0.56619137,3691.7,3691.4,5.14177]
[1718039356030,0.56619137,3691.7,3691.6,0.714]
[1718039356195,1.13238275,3692.0,3691.6,0.714]
[1718039356196,0.84928706,3691.8,3691.6,0.714]
[1718039356584,0.84928706,3691.7,3691.6,0.714]
[1718039361397,0.84928706,3691.7,3691.4,5.14177]
[1718039361712,0.84928706,3691.7,3691.6,0.714]
[1718039363596,0.84928706,3691.7,3691.4,3.42297]
[1718039363795,0.5676128,3691.5,3691.4,3.42297]
[1718039365831,0.84928706,3691.6,3691.4,3.42297]
[1718039367272,0.84928706,3691.5,3691.4,3.42297]
[1718039367471,0.84928706,3691.6,3691.4,3.42297]
[1718039369155,0.84928706,3691.6,3691.5,2.2957]
[1718039369475,0.84928706,3691.8,3691.6,2.70885]
[1718039369657,0.84928706,3691.8,3691.7,0.714]
[1718039369658,0.56792066,3691.8,3691.7,0.714]
[1718039369857,0.56792066,3691.8,3691.7,1.11914084]
[1718039370356,0.84928706,3692.0,3691.8,2.7087]
[1718039370552,0.84928706,3692.0,3691.9,0.714]
[1718039376395,0.84928706,3692.0,3691.9,5.9698]
[1718039376573,0.84928706,3692.0,3691.9,5.2558]
[1718039376886,0.84928706,3692.0,3691.9,5.9698]
[1718039377989,3.63345207,3692.6,3692.1,2.70847]